Cogmind - Beta 11.1 @@@ ROGUE MODE // 2022.05.26 @ 01:19:27 Player: Lyra Result: Self-destructed Performance ------------- Evolutions (3) 1500 Regions Visited (6) 1200 Robots Destroyed (90) 450 Value Destroyed (2618) 2618 Prototype IDs (6) 120 Alien Tech Used (0) 0 Bonus (741) 741 TOTAL SCORE: 6629 Bonus ------- High Alert Combat Kills 827 Follower Combat Kills 135 Friendly Fire -221 Cogmind --------- Core Integrity 209/700 Matter 300/300 Energy 15/240 System Corruption 5% Temperature Cool (0) Movement Hovering (44) Location -7/Factory Parts ------- > --- POWER (1) -------- Nuclear Core > --- PROPULSION (5) --- Gravmag System Gravmag System Gravmag System Antigrav System Antigrav System > --- UTILITY (5) ------ Improved Heat Sink Large Storage Unit Visual Processing Unit Target Analyzer Hacking Suite > --- WEAPON (2) ------- Cooled Particle Cannon Cooled Particle Cannon > --- INVENTORY (15) --- Nuclear Core Nuclear Core Light Nuclear Core Improved Hover Unit Improved Hover Unit Improved Hover Unit Gravmag System Gravmag System Coolant Injector High-capacity Storage Unit Improved Sensor Array Particle Charger Improved Shield Generator Improved Spread Laser Gauss Cannon Peak State ------------ > --- POWER ------------ Nuclear Core > --- PROPULSION ------- Gravmag System Gravmag System Gravmag System Antigrav System Antigrav System > --- UTILITY ---------- Improved Heat Sink Large Storage Unit Visual Processing Unit Target Analyzer Hacking Suite > --- WEAPON ----------- Cooled Particle Cannon Cooled Particle Cannon > --- INVENTORY -------- Nuclear Core Nuclear Core Light Nuclear Core Improved Hover Unit Improved Hover Unit Improved Hover Unit Gravmag System Gravmag System Coolant Injector High-capacity Storage Unit Improved Sensor Array Particle Charger Improved Shield Generator Improved Spread Laser Gauss Cannon [Rating: 53] Favorites ----------- Power Light Ion Engine Engine Light Ion Engine Power Core Light Nuclear Core Propulsion Improved Flight Unit Treads Armored Treads Leg Improved Aluminum Leg Hover Unit Antigrav System Flight Unit Improved Flight Unit Utility Improved Targeting Computer Device Improved Heat Sink Storage High-capacity Storage Unit Processor Improved Targeting Computer Hackware Hacking Suite Protection Hardened Medium Armor Plating Weapon Assault Rifle Energy Gun Heavy Particle Gun Energy Cannon Advanced Beam Cannon Ballistic Gun Assault Rifle Ballistic Cannon Advanced Assault Cannon Launcher Rocket Launcher Special Weapon Remote Datajack Impact Weapon Heavy Flail Build | -11 -10 -10 -10 -9 -8 -7 ------- Run | Scr Mat Min Exi Min Mat Fac Slots Evolved 6 | . . . . . 4 2 Power . | . . . . . . . Propulsion 3 | . . . . . 2 1 Utility 3 | . . . . . 2 1 Weapon . | . . . . . . . Parts Attached 122 | 5 6 3 1 . 51 56 Power 12 | 1 1 . . . 4 6 Engine 7 | 1 1 . . . 2 3 Core 5 | . . . . . 2 3 Reactor . | . . . . . . . Propulsion 41 | 2 2 . . . 14 23 Treads 4 | . . . . . . 4 Leg 13 | 2 2 . . . 9 . Wheel . | . . . . . . . Hover 9 | . . . . . . 9 Flight 15 | . . . . . 5 10 Utility 26 | . 3 . 1 . 11 11 Device 4 | . . . . . 3 1 Storage 10 | . 2 . 1 . 3 4 Processor 4 | . 1 . . . 1 2 Hackware 3 | . . . . . . 3 Protection 5 | . . . . . 4 1 Artifact . | . . . . . . . Weapon 43 | 2 . 3 . . 22 16 Energy Gun 14 | . . . . . 10 4 Energy Cannon 4 | . . . . . 1 3 Ballistic Gun 9 | 2 . 1 . . 2 4 Ballistic Cannon 2 | . . . . . 1 1 Launcher 8 | . . 2 . . 4 2 Special Weapon 1 | . . . . . . 1 Impact Weapon 5 | . . . . . 4 1 Slashing Weapon . | . . . . . . . Piercing Weapon . | . . . . . . . Special Melee Weapon . | . . . . . . . Unidentified Prototypes 6 | . . . . . 3 3 Parts Lost 30 | . 1 . . . 13 16 Power 6 | . 1 . . . 3 2 Propulsion 14 | . . . . . 7 7 Utility 6 | . . . . . 2 4 Weapon 4 | . . . . . 1 3 Highest Loss Streak 10 | . 1 . . . 4 10 To Critical Strikes . | . . . . . . . Average Slot Usage (%) 88 | . 85 100 100 100 91 79 Engine 6 | . 12 14 14 14 5 2 Core 1 | . . . . . 1 1 Treads 2 | . . . . . . 6 Leg 15 | . 28 28 28 28 20 . Hover 4 | . . . . . . 14 Flight 9 | . . . . . 12 13 Device 2 | . . . . . 4 . Storage 8 | . 15 14 14 14 7 4 Processor 12 | . . 14 14 14 17 7 Hackware 2 | . . . . . . 9 Protection 3 | . . . . . 3 5 Energy Gun 4 | . . . . . 9 3 Energy Cannon 1 | . . . . . 1 2 Ballistic Gun 6 | . 28 17 14 14 2 2 Launcher 4 | . . 10 14 14 3 1 Naked Turns . | . . . . . . . Heaviest Build 58 | 7 16 14 49 49 58 53 Greatest Support 80 | 20 26 26 26 26 54 80 Greatest Overweight (x) 15 | 1 . . 1 1 15 2 Average Overweight (x) . | . . . . 1 . . Largest Inventory Capacity 25 | 5 8 8 20 20 25 20 Average Capacity 13 | 5 7 8 9 20 16 11 Most Carried 20 | . 8 8 9 9 20 18 Average Carried 10 | . 2 7 8 9 13 9 Final Capacity 20 | 5 8 8 20 20 20 15 Final Carried 18 | . 8 8 9 9 18 15 Class Distribution -------------------- 63% | Mutant 11% | Scavenger-Mutant 10% | Sprinter 8% | Hacker-Sprinter 6% | Hacker-Mutant Dominant Class ---------------- Mutant | -10/Materials Mutant | -10/Mines Mutant | -10/Exiles Mutant | -9/Mines Mutant | -8/Materials Mutant | -7/Factory Resources | -11 -10 -10 -10 -9 -8 -7 ----------- Run | Scr Mat Min Exi Min Mat Fac Matter Collected 2653 | 247 171 152 106 24 1190 763 Remotely . | . . . . . . . Salvage Created 3284 | . 105 97 . . 2060 1022 Parts 169 | . 8 6 . . 100 55 Haulers Intercepted 4 | . . . . . 3 1 Recyclers Shooed 2 | . 1 . . . 1 . Parts Field Recycled . | . . . . . . . Retrieved Matter . | . . . . . . . Parts Self-Destructed . | . . . . . . . Prevented . | . . . . . . . Kills | -11 -10 -10 -10 -9 -8 -7 ------- Run | Scr Mat Min Exi Min Mat Fac Combat Hostiles Destroyed 76 | . 6 4 . . 50 16 Guns 36 | . 6 2 . . 15 13 Cannons 7 | . . . . . 5 2 AOE 31 | . . 2 . . 28 1 Classes Destroyed 14 | . 1 1 . . 8 4 Worker 3 | . . . . . . 3 Builder 2 | . . . . . 1 1 Tunneler 3 | . . . . . 1 2 Hauler 4 | . . . . . 3 1 Recycler 7 | . . . . . 5 2 Operator 1 | . . . . . . 1 Watcher 2 | . . . . . 1 1 Swarmer 22 | . 6 2 . . 11 3 Grunt 44 | . . 2 . . 33 9 Brawler 1 | . . . . . 1 . Protector 1 | . . . . . 1 . Sentry 6 | . . . . . 5 1 Hunter 1 | . . . . . . 1 Programmer 2 | . . . . . . 2 Best Kill Streak 8 | . 3 4 . . 8 6 Combat Bots Only 8 | . 3 4 . . 8 3 Max Kills in Single Turn 2 | . 1 2 . . 2 2 Gunslinging 1 | . . . . . . 1 Exploded 2 | . . 2 . . 2 1 Melee . | . . . . . . . Uniques/NPCs Destroyed . | . . . . . . . Combat | -11 -10 -10 -10 -9 -8 -7 -------- Run | Scr Mat Min Exi Min Mat Fac Damage Taken 4860 | . 340 97 . . 2209 2214 Core 911 | . 17 13 . . 390 491 Absorbed by Shields . | . . . . . . . Redirected to Shielding 17 | . . . . . . 17 Core Remaining (%) 72 | 100 . . . 88 29 . Volleys Fired 226 | . 23 7 . . 124 72 Largest 2 | . 2 2 . . 2 2 Hottest 180 | . 40 53 . . 110 180 Shots Fired 335 | . 46 9 . . 167 113 Gun 252 | . 46 7 . . 108 91 Cannon 42 | . . . . . 23 19 Launcher 41 | . . 2 . . 36 3 Special . | . . . . . . . Kinetic 163 | . 46 7 . . 47 63 Thermal 131 | . . . . . 84 47 Explosive 41 | . . 2 . . 36 3 Electromagnetic . | . . . . . . . Robot Hit Streak 12 | . 5 3 . . 12 11 Robot Miss Streak 5 | . 3 1 . . 3 5 Penetration Max 1 | . . . . . 1 . Secondary Targets 1 | . . . . . . 1 Max Gunslinging Chain 1 | . . . . . . 1 Shots Hit Robots 238 | . 25 5 . . 120 88 Core Hits 175 | . 6 5 . . 101 63 Critical Kills 1 | . . . . . . 1 Critical Parts Destroyed 3 | . . . . . 1 2 Critical Strikes 8 | . . . . . 5 3 Burn 2 | . . . . . 2 . Destroy 3 | . . . . . 1 2 Blast 2 | . . . . . 2 . Smash 1 | . . . . . . 1 Melee Attacks 16 | . . . . . 10 6 Impact 16 | . . . . . 10 6 Slashing . | . . . . . . . Piercing . | . . . . . . . Sneak Attacks 7 | . . . . . 2 5 Combat Hostiles . | . . . . . . . Follow-up Attacks . | . . . . . . . Damage Inflicted 8332 | . 366 186 . . 5612 2168 Guns 3212 | . 366 50 . . 1515 1281 Cannons 599 | . . . . . 402 197 Explosions 3676 | . . 136 . . 3361 179 Melee 840 | . . . . . 329 511 Ramming 5 | . . . . . 5 . Kinetic 1860 | . 366 50 . . 712 732 Thermal 1951 | . . . . . 1205 746 Explosive 3676 | . . 136 . . 3361 179 Electromagnetic . | . . . . . . . Impact 840 | . . . . . 329 511 Slashing . | . . . . . . . Piercing . | . . . . . . . Highest Corruption 5 | . . . . . 5 5 Average Corruption 2 | . . . . . 3 2 Corruption Purged . | . . . . . . . Corruption Blocked . | . . . . . . . Effects 36 | . . . . . 15 21 Message Errors 6 | . . . . . . 6 Matter Fused 16 | . . . . . 9 7 Heat Flow Errors 3 | . . . . . 1 2 Energy Discharges 5 | . . . . . 2 3 Parts Rejected 1 | . . . . . . 1 Data Loss (minor) 1 | . . . . . 1 . Data Loss (major) 1 | . . . . . . 1 Misfires 2 | . . . . . 1 1 Alerts 1 | . . . . . 1 . Overload Shots 5 | . . . . . . 5 Overflow Damage 520 | . . 13 . . 178 329 Projectiles 1 | . . . . . 1 . Explosions 180 | . . 13 . . 167 . Melee 339 | . . . . . 10 329 Knockbacks 6 | . . . . . 4 2 Impact 2 | . . . . . . 2 Kinetic 4 | . . . . . 4 . Secondary . | . . . . . . . Self-Inflicted Damage 216 | . . . . . 94 122 Shots 4 | . . . . . 2 2 Rammed . | . . . . . . . Targets Rammed 1 | . . . . . 1 . Kicked 1 | . . . . . 1 . Crushed . | . . . . . . . Highest Temperature 304 | . . 17 . . 304 276 Average Temperature 94 | . . 9 . . 103 80 Received Heat Transfer 2052 | . . 75 . . 1197 780 Effects 2 | . . . . . 2 . Energy Bleed 2 | . . . . . 2 . Siege Activations . | . . . . . . . Robots Corrupted . | . . . . . . . Combat Hostiles . | . . . . . . . Parts Fried 8 | . . . . . 3 5 Impact Corruptions 11 | . . . . . 1 10 Robots Melted 1 | . . . . . 1 . Combat Hostiles 1 | . . . . . 1 . Parts Melted 4 | . . . . . 4 . Heat Transferred 3271 | . . . . . 2544 727 Parts Sabotaged . | . . . . . . . Parts Stolen . | . . . . . . . Parts Stripped . | . . . . . . . Power Chain Reactions . | . . . . . . . Missiles Intercepted . | . . . . . . . Alert | -11 -10 -10 -10 -9 -8 -7 ------- Run | Scr Mat Min Exi Min Mat Fac Peak Influence 1334 | . 136 231 . . 1334 858 Initial 606 | . . . . . . 606 Average 508 | . 56 160 . . 529 727 Maximum Alert Level 4 | . . 1 . . 4 3 Low Security (%) 23 | 100 100 46 . 100 15 . Level 1 15 | . . 53 . . 27 . Level 2 24 | . . . . . 32 28 Level 3 30 | . . . . . 12 71 Level 4 5 | . . . . . 11 . Level 5 . | . . . . . . . High Security . | . . . . . . . Max Security . | . . . . . . . Sterilizations 1 | . . . . . 1 . Squads Dispatched 20 | . . . . . 10 10 Investigation 8 | . . . . . 4 4 Extermination 4 | . . . . . . 4 Reinforcement 4 | . . . . . 4 . Assault 4 | . . . . . 2 2 Garrison . | . . . . . . . Intercept . | . . . . . . . Searches Triggered . | . . . . . . . Construction Impeded 2 | . . . . . 2 . Haulers Reinforced . | . . . . . . . Active Scanning Responses . | . . . . . . . Cargo Convoy Interrupts . | . . . . . . . Stealth | -11 -10 -10 -10 -9 -8 -7 --------- Run | Scr Mat Min Exi Min Mat Fac Distress Signals 5 | . . . . . 5 . Communications Jammed . | . . . . . . . Distress Signals . | . . . . . . . Times Spotted 160 | . 9 6 . . 98 47 Peak Tracking Total 12 | . 4 2 . . 12 8 Tactical Retreats 16 | . 1 . . . 7 8 Traps | -11 -10 -10 -10 -9 -8 -7 ------- Run | Scr Mat Min Exi Min Mat Fac Traps Triggered 2 | . . . . . 1 1 Indirectly . | . . . . . . . Trap Hack Attempts . | . . . . . . . Triggered . | . . . . . . . Disarmed . | . . . . . . . Reprogrammed . | . . . . . . . Reused . | . . . . . . . Traps Extracted . | . . . . . . . Installed . | . . . . . . . Triggered . | . . . . . . . Machines | -11 -10 -10 -10 -9 -8 -7 ---------- Run | Scr Mat Min Exi Min Mat Fac Machines Disabled 8 | . . . . . 5 3 Max in Single Turn 2 | . . . . . 2 2 Machines Sabotaged . | . . . . . . . Garrisons Compromised . | . . . . . . . Overloaded Fab Kills . | . . . . . . . Hacking | -11 -10 -10 -10 -9 -8 -7 --------- Run | Scr Mat Min Exi Min Mat Fac Machines Accessed 22 | . 2 . 3 . 9 8 Terminals 13 | . 2 . . . 7 4 Fabricators 2 | . . . . . . 2 Repair Stations . | . . . . . . . Recycling Units 4 | . . . . . 2 2 Scanalyzers . | . . . . . . . Garrison Access . | . . . . . . . Total Hacks 76 | . 3 . 3 . 37 33 Successful 40 | . 1 . 3 . 22 14 Failed 35 | . 2 . . . 14 19 Catastrophic 9 | . 2 . . . 4 3 Database Lockouts 1 | . . . . . 1 . Manual 49 | . 3 . . . 29 17 Terminals 55 | . 3 . . . 30 22 Fabricators 6 | . . . . . . 6 Repair Stations . | . . . . . . . Recycling Units 12 | . . . . . 7 5 Scanalyzers . | . . . . . . . Garrison Access . | . . . . . . . Terminal Hacks 20 | . 1 . 3 . 9 7 Record 3 | . . . 3 . . . Part Schematic 6 | . . . . . 5 1 Robot Schematic 1 | . . . . . . 1 Robot Analysis 1 | . . . . . . 1 Branch Access Points 1 | . . . . . 1 . Terminal Index 3 | . 1 . . . 1 1 Alert Level 2 | . . . . . 1 1 Unreport Threat 1 | . . . . . 1 . Locate Traps 1 | . . . . . . 1 Zone Layout 1 | . . . . . . 1 Fabricator Hacks 1 | . . . . . . 1 Build 1 | . . . . . . 1 Repair Station Hacks . | . . . . . . . Recycling Unit Hacks 5 | . . . . . 4 1 Report Inventory 3 | . . . . . 2 1 Retrieve Matter 1 | . . . . . 1 . Retrieve Components 1 | . . . . . 1 . Scanalyzer . | . . . . . . . Garrison Access Hacks . | . . . . . . . Unauthorized Hacks 14 | . . . . . 9 5 Terminals 10 | . . . . . 7 3 Botnet 9 | . . . . . 6 3 Operators 1 | . . . . . 1 . Fabricators . | . . . . . . . Repair Stations . | . . . . . . . Recycling Units 4 | . . . . . 2 2 Reject 2 | . . . . . 1 1 Mask 2 | . . . . . 1 1 Scanalyzers . | . . . . . . . Garrison Access . | . . . . . . . Data Cores Recovered . | . . . . . . . Used . | . . . . . . . Hacking Detections 18 | . 2 . . . 9 7 Full Trace Events 8 | . . . . . 4 4 Feedback Events 1 | . . . . . . 1 Corruption 1 | . . . . . . 1 Feedback Blocked . | . . . . . . . Robot Schematics Acquired 1 | . . . . . . 1 Robots Built . | . . . . . . . Authchips . | . . . . . . . Time . | . . . . . . . Total Robot Build Rating . | . . . . . . . Part Schematics Acquired 6 | . . . . . 5 1 Parts Built 2 | . . . . . . 2 Authchips . | . . . . . . . Time 28 | . . . . . . 28 Total Part Build Rating 8 | . . . . . . 8 Parts Repaired . | . . . . . . . Time . | . . . . . . . Parts Recycled . | . . . . . . . Recycled Matter . | . . . . . . . Retrieved Matter 24 | . . . . . 24 . Retrieved Components 9 | . . . . . 9 . Parts Scanalyzed . | . . . . . . . Part Schematics Acquired . | . . . . . . . Parts Damaged . | . . . . . . . Bothacking | -11 -10 -10 -10 -9 -8 -7 ------------ Run | Scr Mat Min Exi Min Mat Fac Used RIF Installer . | . . . . . . . Robots Hacked . | . . . . . . . Non-combat . | . . . . . . . Combat . | . . . . . . . Robot Hacks Applied . | . . . . . . . Relay Couplers Released . | . . . . . . . Fabnet Peak Effective % . | . . . . . . . Robots Rewired . | . . . . . . . Allies Hacked 1 | . . . . . . 1 Hacks Repelled . | . . . . . . . Allies | -11 -10 -10 -10 -9 -8 -7 -------- Run | Scr Mat Min Exi Min Mat Fac Total Allies 7 | . . 4 . . . 3 Largest Group 4 | . . 4 3 3 3 3 Highest-Rated Group 93 | . . 71 40 40 40 93 Highest-Rated Ally 31 | . . 31 16 16 16 31 Total Orders . | . . . . . . . Ally Attacks 44 | . . 8 . . 18 18 Total Damage 527 | . . 166 . . 124 237 Kills 9 | . . 3 . . 4 2 Allies Corrupted . | . . . . . . . Allies Melted . | . . . . . . . Intel | -11 -10 -10 -10 -9 -8 -7 ------- Run | Scr Mat Min Exi Min Mat Fac Robot Analysis Total 1 | . . . . . . 1 Derelict Logs Recovered 2 | . . 1 . 1 . . Drone Launches . | . . . . . . . Drone Recoveries . | . . . . . . . Exploration | -11 -10 -10 -10 -9 -8 -7 ------------- Run | Scr Mat Min Exi Min Mat Fac Turns Passed 5622 | 47 428 297 602 234 2226 1788 Spaces Moved 4519 | 36 278 206 481 124 1785 1609 Core 10 | 7 . . . . 3 . Treads 195 | . . . . . . 195 Legs 1734 | 29 278 206 481 124 616 . Wheels . | . . . . . . . Hover 746 | . . . . . . 746 Flight 1834 | . . . . . 1166 668 Fastest Speed 24 | 50 120 120 120 190 31 24 Average Speed 89 | 110 120 120 124 190 94 56 Slowest Speed 800 | 120 120 120 190 190 800 330 Overloaded Moves . | . . . . . . . Propulsion Burnouts . | . . . . . . . Robots Hopped 12 | . . . . . 2 10 Cave-ins Triggered . | . . . . . . . Exploration Rate (%) 46 | 3 49 46 90 25 93 21 Regions Visited 6 Branch Regions 3 Pre-discovered Areas 1 | . . 1 . . . . Known Exits Taken 1 | . . . . . 1 . Unknown Exits Taken 5 | 1 1 1 1 1 . . Scrap Searched 1 | . . . . 1 . . Spaces Dug 20 | . . . . . 6 14 Terrain Destroyed 306 | . . 23 . . 238 45 Melee 6 | . . . . . 6 . Projectile 12 | . . . . . 4 8 AOE 288 | . . 23 . . 228 37 Terrain Rammed . | . . . . . . . Walls Destroyed . | . . . . . . . Machines Disabled . | . . . . . . . Actions | -11 -10 -10 -10 -9 -8 -7 --------- Run | Scr Mat Min Exi Min Mat Fac Total 5718 | 40 324 246 483 123 2154 2348 Wait 660 | . 8 27 . . 77 548 Move 4490 | 35 277 205 480 123 1780 1590 Hop 11 | . . . . . 2 9 Pick Up 108 | . 8 2 1 . 60 37 Fast Attach 60 | 5 3 . . . 26 26 Attach 25 | . . . . . 9 16 Detach 4 | . . . . . 3 1 Swap 37 | . 3 3 1 . 16 14 Drop 80 | . 2 2 1 . 46 29 Fire 226 | . 23 7 . . 124 72 Melee 16 | . . . . . 10 6 Ram . | . . . . . . . Kick 1 | . . . . . 1 . Crush . | . . . . . . . Escape Stasis . | . . . . . . . Rewire . | . . . . . . . Trap . | . . . . . . . Miscellaneous . | . . . . . . . Route ------- -11/Scrapyard -10/Materials (discovered 2 exits: [*Mat] / [*Min]) -10/Mines (discovered 3 exits: [*Mat x2] / *Exi) -10/Exiles -9/Mines -8/Materials (discovered 3 exits: *Fac x3) -7/Factory History --------- Turn | Location | Event 7 | -11/Scrapyard | Discovered new exit (range 15) 48 | -11/Scrapyard | Entered Materials 258 | -10/Materials | Discovered new exit (range 13) 302 | -10/Materials | Build established: Mutant 360 | -10/Materials | Discovered new exit (range 5) 476 | -10/Materials | Entered Mines 479 | -10/Mines | Received a Mining Laser from a helpful Derelict 506 | -10/Mines | Received a Rocket Launcher from a helpful Derelict 619 | -10/Mines | Learned location of Zion (-7) 673 | -10/Mines | Discovered new exit (range 8) 677 | -10/Mines | Assisted by bots powering up and referring to "LRC-V3" 707 | -10/Mines | Discovered new exit (range 9) 745 | -10/Mines | Deemed a non-threat by the Exiles lab entrance 746 | -10/Mines | Discovered new exit (range 5) 773 | -10/Mines | Entered Exiles 773 | -10/Exiles | Found Exiles lab abandoned 773 | -10/Exiles | Accompanied by 3 allies 1354 | -10/Exiles | Discovered new exit (range 14) 1375 | -10/Exiles | Entered Mines 1375 | -9/Mines | Accompanied by 3 allies 1391 | -9/Mines | Met a Derelict bent on vengeance 1442 | -9/Mines | Discovered new exit (range 5) 1470 | -9/Mines | Learned location of 1 exit from Materials 1609 | -9/Mines | Entered Materials 1609 | -8/Materials | Accompanied by 3 allies 1609 | -8/Materials | Evolved 4 slots: Propulsion x2, Utility x2 1610 | -8/Materials | Identified exit to Factory 1812 | -8/Materials | Destroyed 8 combat bots 2247 | -8/Materials | Discovered exit to Factory (range 14) 2902 | -8/Materials | Central database locked down 2959 | -8/Materials | Core integrity fell below 50% 2985 | -8/Materials | Lost 4 parts (1p3n) 3209 | -8/Materials | First assault squad dispatched 3599 | -8/Materials | Discovered exit to Factory (range 20) 3720 | -8/Materials | Sterilization system engaged 3720 | -8/Materials | Non-combat units ordered to evacuate 3820 | -8/Materials | Combat units ordered to evacuate 3835 | -8/Materials | Entered Factory 3835 | -7/Factory | Evolved 2 slots: Propulsion x1, Utility x1 3889 | -7/Factory | Fabricated Gravmag System? 4122 | -7/Factory | Allied Derelicts emerged from ambush trap array 4158 | -7/Factory | Build established: Hacker-Sprinter 4619 | -7/Factory | Build established: Hacker-Mutant 4635 | -7/Factory | First assault squad dispatched 4765 | -7/Factory | Lost 10 parts (1p4n4u1w) 5086 | -7/Factory | Build established: Mutant 5194 | -7/Factory | Core integrity fell below 50% 5268 | -7/Factory | Lost 4 parts (1p2n1w) 5599 | -7/Factory | Build established: Scavenger-Mutant 5623 | -7/Factory | Self-destructed Last Messages --------------- 05513_ R-06 Scavenger collects Hvy. Assault Rifle. 05514_ U-05 Engineer builds a Wall. 05515_ GCX%V#H BG K%V&DPBKOHODTZ< 05515_ G-47 Trooper destroyed. 05516_ R-06 Scavenger collects Hvy. Assault Rifle. 05519_ K-01 Serf collects debris. 05522_ Connecting with Terminal... 05528_ Dropped Lrg. Storage Unit. 05534_ Acquired 7 matter. 05539_ C-30 ARC bursts open, deploying its payload. 05539_ G-50 Soldier unfolds itself. 05539_ G-47 Trooper unfolds itself. 05540_ System corrupted: Cld. Particle Cannon rejected. 05540_ Acquired Cld. Particle Cannon. 05545_ G-47 Trooper destroyed. 05585_ ALERT: Rogue bot located, Programmers report to Factory Zone 7R. 05599_ Acquired 80 matter. 05600_ Acquired 3 matter. 05615_ System corrupted: Matter fused (-6). 05620_ Acquired 6 matter. Map ----- +----------------------------------------------------+ | # ? # #??????????????????? | | ###??######### #??????????????????? | | ?????????????# #??????????????????? | | ?????????????# % #??????????????????? | | ?????????????# #??????????????????? | | ?????????????# #??????????????????? | | ?????????????# #??????????????????? | | ?????????????# #??????????????????? | | ?????????????# #??????????????????? | | ?????????????# #??????????????????? | | ?????????????# #??????????????????? | | ?????????????# #??????????????????? | | ?????????????# ! #??????????????????? | | ?????????????# #??????????????????? | | ?????????????# #??????????????????? | | ???????????#######+############??????????????????? | | ???????????# #??????????????????????? | | ???????????# !#??????????????????????? | | ???????????# """"""""" #??????????????????????? | | ???????????# #??????????????????????? | | ???????????# """"""""" #??????????????????????? | | ???????????# %#??????????????????????? | | ???????????##############+#??????????????????????? | | ????????????????????????# #??????????????????????? | | ????????????????????????# #??????????????????????? | | ????????????????????????#@#??????????????????????? | | ????????????????????????# #??????????????????????? | | ????????????????????????#+#??????????????????????? | | ???????????????????????? ??????????????????????? | | ???????????????????????? ??????????????????????? | | ??????????????????????? ?????????????????????? | | ??????????????????????? ?????????????????????? | | ??????????????????????# ????????????????????? | | ??????????????????????# ????????????????????? | | ??????????????????????# ???????????????????? | | ??????????????????????# ???????????????????? | | ??????????????????????# ??????????????????? | | ??????????????????????#####+###??????????????????? | | ?????????????????????????????????????????????????? | | ?????????????????????????????????????????????????? | | ?????????????????????????????????????????????????? | | ?????????????????????????????????????????????????? | | ?????????????????????????????????????????????????? | | ?????????????????????????????????????????????????? | | ?????????????????????????????????????????????????? | | ?????????????????????????????????????????????????? | | ?????????????????????????????????????????????????? | | ?????????????????????????????????????????????????? | | ?????????????????????????????????????????????????? | | ?????????????????????????????????????????????????? | +----------------------------------------------------+ Best States ------------- Heat Dissipation 48 Energy Generation 16 Energy Capacity 375 Matter Stores 300 Matter Capacity 300 Sight Range 20 Terrain Scan Range 16 Terrain Scan Density 10 Armor Coverage 225 Propulsion Shielding 66 Evasion (%) 64 Targeting Accuracy 6 Target Analysis 5 Recoil Reduction 4 Offensive Hacking 10 Defensive Hacking 10 Item Schematics ----------------- Lrg. Storage Unit | -8/Materials | Hacked Hcp. Storage Unit | -8/Materials | Hacked Hacking Suite | -8/Materials | Hacked Hvy. Assault Cannon | -8/Materials | Hacked Hrd. Medium Armor Plating | -8/Materials | Hacked Hvy. Phase Cannon | -7/Factory | Hacked Robot Schematics ------------------ S-27 Virus | -7/Factory | Hacked Fabricated ------------ Gravmag System | x2 | -7/Factory | Preloaded Alien Tech Used ----------------- None Achievements -------------- None Challenges ------------ None Game ------ Seed FusionHellfireScanner Manual? 0 Play Time 01:11:16 Cumulative 115.6 hours Start 2022.05.26 @ 00:06:35 End 2022.05.26 @ 01:19:27 Sessions 1 Manual Loads 0 Difficulty Rogue Special Mode None Game No. 47 Rogue 47 Adventurer 0 Explorer 0 Win Type - Total 3 Types 2/0/1/0/0/0/0/0/0 Lore% 37 Gallery% 65 Achievement% 71 Wizard Run 0 Options --------- ASCII 0 Keyboard 0 Movement Numpad Keybinds 0 Fullscreen 1 Font 24/Smallcaps Map View 76x50 Tactical HUD 1 Map Filters NONE Filters LOW_CONTRAST(13,24,33) Steam 1 RUN: 4340bb68-1472-43e0-b602-5981aa31172d